[Event "Spring Chess Classic A 2024"]
[Site "Saint Louis"]
[Date "2024.04.16"]
[Round "5.4"]
[White "Theodorou, Nikolas"]
[Black "Aryan Chopra"]
[Result "1/2-1/2"]
[ECO "E01"]
[WhiteElo "2622"]
[BlackElo "2630"]
[Annotator "RC"]
[PlyCount "113"]
[EventDate "2024.04.11"]
[EventCountry "USA"]
[SourceTitle "playchess.com"]
[Source "ChessBase"]
[SourceQuality "1"]
[TimeControl "7200+30"]

1. d4 {[%emt 0:00:04]} d5 {[%emt 0:00:50]} 2. c4 {[%emt 0:00:07]} c6 {[%emt 0:00:03]} 3. Nf3 {[%emt 0:00:06]} Nf6 {[%emt 0:00:05]} 4. Nc3 {[%emt 0:00:06]} e6 {[%emt 0:00:05]} 5. g3 {[%emt 0:00:04]} dxc4 {[%emt 0:06:44]} 6. Bg2 {[%emt 0:00:08]} Nbd7 {[%emt 0:00:06]} 7. O-O {[%emt 0:00:31]} b5 {[%emt 0:03:30]} 8. e4 {[%emt 0:00:17]} Bb7 {[%emt 0:06:20]} 9. e5 {[%emt 0:00:06]} Nd5 {[%emt 0:00:04]} 10. Ng5 {[%emt 0:00:08]} Nxc3 {[%emt 0:30:23]} 11. bxc3 {[%emt 0:07:53]} Nb6 {[%emt 0:00:10]} 12. Qh5 {[%emt 0:36:50]} Qd7 {[%emt 0:04:44]} 13. Ne4 {[%emt 0:00:14]} Nd5 {[%emt 0:16:26]} 14. Bg5 {[%emt 0:05:14]} h6 {[%emt 0:04:12]} 15. Rfe1 {[%emt 0:07:44]} Rg8 {[%emt 0:03:21]} 16. Bd2 {[%emt 0:05:13]} a5 {[%emt 0:02:22]} 17. Qg4 {[%emt 0:15:07]} g6 {[%emt 0:11:36]} 18. a4 {[%emt 0:16:19]} b4 {[%emt 0:08:55]} 19. Rab1 {[%emt 0:00:02]} b3 {[%emt 0:05:50]} 20. Bf1 {[%emt 0:04:27]} Ba6 {[%emt 0:05:16]} 21. Nc5 {[%emt 0:00:47]} Bxc5 {[%emt 0:00:22]} 22. dxc5 {[%emt 0:00:03]} h5 {[%emt 0:00:11]} 23. Qh4 {[%emt 0:10:09]} Qe7 {[%emt 0:01:28]} 24. Re4 {[%emt 0:00:02]} Qxh4 {[%emt 0:11:08]} 25. Rxh4 {[%emt 0:01:11]} Ke7 {[%emt 0:04:52]} 26. Bxc4 {[%emt 0:01:17]} g5 {[%emt 0:01:07]} 27. Rd4 {[%emt 0:00:59]} Bxc4 {[%emt 0:00:05]} 28. Rxc4 {[%emt 0:00:03]} Rab8 {[%emt 0:00:04]} 29. Rd4 {[%emt 0:02:09]} g4 {[%emt 0:00:43]} 30. Kg2 {[%emt 0:07:18]} f6 {[%emt 0:00:49]} 31. exf6+ {[%emt 0:00:02]} Kxf6 {[%emt 0:00:05]} 32. c4 {[%emt 0:01:11]} e5 {[%emt 0:00:40]} 33. Rd3 {[%emt 0:02:49]} e4 {[%emt 0:00:05]} 34. Rdxb3 {[%emt 0:00:19]} Rxb3 {[%emt 0:00:07]} 35. Rxb3 {[%emt 0:00:03]} Nb4 {[%emt 0:00:15]} 36. Bxb4 {[%emt 0:02:05]} axb4 {[%emt 0:00:05]} 37. Rxb4 {[%emt 0:00:03]} Ra8 {[%emt 0:00:17]} 38. Rb6 {[%emt 0:00:41]} Rxa4 {[%emt 0:02:57]} 39. Rxc6+ {[%emt 0:00:03]} Ke5 {[%emt 0:02:04]} 40. Rh6 {[%emt 0:01:28]} e3 {[%emt 0:00:31]} 41. Rxh5+ {[%emt 0:03:37]} Ke4 {[%emt 0:00:07]} 42. fxe3 {[%emt 0:00:04]} Rxc4 {[%emt 0:00:54]} 43. Kf2 {[%emt 0:01:51]} Rc2+ {[%emt 0:00:05]} 44. Ke1 {[%emt 0:00:24]} Kxe3 {[%emt 0:00:05]} 45. Kd1 {[%emt 0:00:36]} Rc4 {[%emt 0:00:51]} 46. Rg5 {[%emt 0:01:46]} Kd3 {[%emt 0:00:25]} 47. c6 {[%emt 0:01:00]} Rxc6 {[%emt 0:00:25]} 48. Rxg4 {[%emt 0:00:05]} Rh6 {[%emt 0:00:07]} 49. h4 {[%emt 0:00:25]} Ra6 {[%emt 0:00:03]} 50. Kc1 {[%emt 0:01:23]} Kc3 {[%emt 0:00:04]} 51. Kb1 {[%emt 0:00:18]} Rb6+ {[%emt 0:00:06]} 52. Kc1 {[%emt 0:00:05]} Ra6 {[%emt 0:00:03]} 53. Kd1 {[%emt 0:01:10]} Kd3 {[%emt 0:00:06]} 54. Ke1 {[%emt 0:00:31]} Ke3 {[%emt 0:00:05]} 55. Kd1 {[%emt 0:00:43]} Kd3 {[%emt 0:00:04]} 56. Ke1 {[%emt 0:00:15]} Ke3 {[%emt 0:00:04]} 57. Kd1 {[%emt 0:00:07]} 1/2-1/2

[Event "Spring Chess Classic A 2024"]
[Site "Saint Louis"]
[Date "2024.04.16"]
[Round "5.5"]
[White "Antipov, Mikhail Al."]
[Black "Swiercz, Dariusz"]
[Result "1-0"]
[ECO "C55"]
[WhiteElo "2574"]
[BlackElo "2612"]
[Annotator "RC"]
[PlyCount "163"]
[EventDate "2024.04.11"]
[EventCountry "USA"]
[SourceTitle "playchess.com"]
[Source "ChessBase"]
[SourceQuality "1"]
[TimeControl "7200+30"]

1. e4 {[%emt 0:00:01]} e5 {[%emt 0:02:08]} 2. Nf3 {[%emt 0:00:05]} Nc6 {[%emt 0:00:04]} 3. Bc4 {[%emt 0:00:05]} Nf6 {[%emt 0:00:04]} 4. d3 {[%emt 0:00:04]} h6 {[%emt 0:00:04]} 5. c3 {[%emt 0:03:06]} d6 {[%emt 0:04:10]} 6. a4 {[%emt 0:00:49]} g5 {[%emt 0:10:39]} 7. a5 {[%emt 0:06:08]} Bg7 {[%emt 0:07:41]} 8. a6 {[%emt 0:00:52]} b6 {[%emt 0:00:53]} 9. Bb5 {[%emt 0:04:17]} Bd7 {[%emt 0:00:06]} 10. h3 {[%emt 0:03:30]} O-O {[%emt 0:10:22]} 11. c4 {[%emt 0:02:41]} Ne7 {[%emt 0:28:40]} 12. Bxd7 {[%emt 0:00:22]} Qxd7 {[%emt 0:00:02]} 13. Nc3 {[%emt 0:00:28]} c6 {[%emt 0:00:14]} 14. O-O {[%emt 0:15:38]} Ng6 {[%emt 0:03:55]} 15. d4 {[%emt 0:02:22]} exd4 {[%emt 0:03:51]} 16. Nxd4 {[%emt 0:00:28]} Rfe8 {[%emt 0:00:04]} 17. Nf5 {[%emt 0:16:38]} Nxe4 {[%emt 0:35:43]} 18. Nxg7 {[%emt 0:01:43]} Kxg7 {[%emt 0:00:01]} 19. Qd4+ {[%emt 0:00:17]} Nf6 {[%emt 0:00:01]} 20. f4 {[%emt 0:00:10]} g4 {[%emt 0:00:31]} 21. f5 {[%emt 0:17:27]} Ne5 {[%emt 0:00:02]} 22. Bd2 {[%emt 0:00:11]} Rh8 {[%emt 0:02:23]} 23. hxg4 {[%emt 0:06:40]} Nfxg4 {[%emt 0:02:23]} 24. Rf4 {[%emt 0:02:40]} h5 {[%emt 0:06:54]} 25. f6+ {[%emt 0:03:50]} Kf8 {[%emt 0:00:01]} 26. Ne4 {[%emt 0:03:35]} Rd8 {[%emt 0:00:04]} 27. Rd1 {[%emt 0:07:43]} Rg8 {[%emt 0:11:07]} 28. Bc3 {[%emt 0:00:35]} Qe6 {[%emt 0:00:03]} 29. c5 {[%emt 0:00:58]} bxc5 {[%emt 0:02:13]} 30. Nxc5 {[%emt 0:02:37]} Qd5 {[%emt 0:00:34]} 31. Nb7 {[%emt 0:09:51]} Ne3 {[%emt 0:00:20]} 32. Qxd5 {[%emt 0:00:03]} cxd5 {[%emt 0:00:05]} 33. Rd2 {[%emt 0:00:04]} Rd7 {[%emt 0:00:50]} 34. Bd4 {[%emt 0:03:07]} N3c4 {[%emt 0:00:24]} 35. Rc2 {[%emt 0:00:40]} Nc6 {[%emt 0:00:19]} 36. b3 {[%emt 0:01:11]} Nb4 {[%emt 0:00:55]} 37. Rc3 {[%emt 0:03:01]} Nxa6 {[%emt 0:00:05]} 38. Na5 {[%emt 0:00:43]} Rg5 {[%emt 0:00:58]} 39. bxc4 {[%emt 0:00:11]} dxc4 {[%emt 0:00:01]} 40. Nxc4 {[%emt 0:00:20]} Nc7 {[%emt 0:00:41]} 41. Ne3 {[%emt 0:02:08]} Ne6 {[%emt 0:00:51]} 42. Rf5 {[%emt 0:00:35]} Kg8 {[%emt 0:00:28]} 43. Rxg5+ {[%emt 0:00:20]} Nxg5 {[%emt 0:00:02]} 44. Nd5 {[%emt 0:01:21]} Kh7 {[%emt 0:00:13]} 45. Rb3 {[%emt 0:04:56]} Ne6 {[%emt 0:00:40]} 46. Bb2 {[%emt 0:00:06]} Kg6 {[%emt 0:00:18]} 47. Kf2 {[%emt 0:02:01]} a5 {[%emt 0:00:55]} 48. Rg3+ {[%emt 0:01:41]} Kh7 {[%emt 0:00:41]} 49. Ne7 {[%emt 0:03:06]} Rb7 {[%emt 0:00:40]} 50. Ba3 {[%emt 0:00:03]} a4 {[%emt 0:00:35]} 51. Rh3 {[%emt 0:00:20]} Rb5 {[%emt 0:00:04]} 52. Bxd6 {[%emt 0:00:35]} Kh6 {[%emt 0:00:24]} 53. g4 {[%emt 0:02:20]} Rg5 {[%emt 0:00:03]} 54. gxh5 {[%emt 0:00:28]} Rxh5 {[%emt 0:00:08]} 55. Re3 {[%emt 0:00:57]} Rh1 {[%emt 0:01:16]} 56. Rg3 {[%emt 0:00:36]} Rd1 {[%emt 0:00:55]} 57. Nf5+ {[%emt 0:00:18]} Kh7 {[%emt 0:00:18]} 58. Bb4 {[%emt 0:01:46]} Rb1 {[%emt 0:00:20]} 59. Be7 {[%emt 0:00:37]} Rb3 {[%emt 0:00:06]} 60. Rg4 {[%emt 0:00:05]} a3 {[%emt 0:00:34]} 61. Ra4 {[%emt 0:00:08]} Rb2+ {[%emt 0:00:52]} 62. Ke3 {[%emt 0:00:06]} a2 {[%emt 0:00:11]} 63. Kd3 {[%emt 0:00:45]} Rf2 {[%emt 0:00:24]} 64. Ne3 {[%emt 0:00:35]} Rxf6 {[%emt 0:01:20]} 65. Bxf6 {[%emt 0:00:44]} Nc5+ {[%emt 0:00:01]} 66. Kc4 {[%emt 0:00:05]} Nxa4 {[%emt 0:00:01]} 67. Kb5 {[%emt 0:00:04]} Kg6 {[%emt 0:00:02]} 68. Ba1 {[%emt 0:00:11]} f5 {[%emt 0:00:27]} 69. Kxa4 {[%emt 0:00:17]} f4 {[%emt 0:00:00]} 70. Nd1 {[%emt 0:00:21]} Kf5 {[%emt 0:00:48]} 71. Kb3 {[%emt 0:00:19]} Ke4 {[%emt 0:01:01]} 72. Kc2 {[%emt 0:00:31]} Kf3 {[%emt 0:00:35]} 73. Kd2 {[%emt 0:00:04]} Kg2 {[%emt 0:00:03]} 74. Ke2 {[%emt 0:00:04]} Kg3 {[%emt 0:00:40]} 75. Nf2 {[%emt 0:00:53]} Kg2 {[%emt 0:00:07]} 76. Ne4 {[%emt 0:00:19]} f3+ {[%emt 0:01:35]} 77. Ke3 {[%emt 0:00:03]} Kf1 {[%emt 0:00:17]} 78. Kxf3 {[%emt 0:00:05]} Ke1 {[%emt 0:00:02]} 79. Ke3 {[%emt 0:00:08]} Kd1 {[%emt 0:00:04]} 80. Kd3 {[%emt 0:00:23]} Kc1 {[%emt 0:00:04]} 81. Nd2 {[%emt 0:00:08]} Kd1 {[%emt 0:00:04]} 82. Nb3 {[%emt 0:00:02]} 1-0

[Event "Spring Chess Classic A 2024"]
[Site "Saint Louis"]
[Date "2024.04.17"]
[Round "6.1"]
[White "Mendonca, Leon Luke"]
[Black "Swiercz, Dariusz"]
[Result "1-0"]
[ECO "B33"]
[WhiteElo "2626"]
[BlackElo "2612"]
[Annotator "TA"]
[PlyCount "107"]
[EventDate "2024.04.11"]
[EventCountry "USA"]
[SourceTitle "playchess.com"]
[Source "ChessBase"]
[SourceQuality "1"]
[TimeControl "7200+30"]

{[%evp 42,107,-29,-24,6,-27,62,52,88,48,93,58,48,47,37,36,104,81,74,78,78,79,80,81,81,81,81,81,147,138,163,151,275,266,250,264,468,412,460,472,452,449,672,642,944,847,841,1223,949,1106,1000,667,1169,247,1419,1394,2279,2922,2833,3897,2893,2491,4622,4622,4618,4614,29987,29988]} 1. e4 {[%emt 0:00:09]} c5 {[%emt 0:02:17]} 2. Nf3 {[%emt 0:00:07]} Nc6 {[%emt 0:00:03]} 3. d4 {[%emt 0:00:22]} cxd4 {[%emt 0:00:04]} 4. Nxd4 {[%emt 0:00:07]} Nf6 {[%emt 0:00:04]} 5. Nc3 {[%emt 0:00:18]} e5 {[%emt 0:00:03]} 6. Ndb5 {[%emt 0:00:34]} d6 {[%emt 0:00:05]} 7. Nd5 {[%emt 0:00:35]} Nxd5 {[%emt 0:00:04]} 8. exd5 {[%emt 0:00:06]} Nb8 {[%emt 0:00:03]} 9. a4 {[%emt 0:03:44]} Be7 {[%emt 0:00:17]} 10. Be2 {[%emt 0:00:25]} O-O {[%emt 0:00:04]} 11. O-O {[%emt 0:01:37] B33: Sicilian: Pelikan and Sveshnikov Variations.} Nd7 {[%emt 0:01:29]} 12. b4 {[%emt 0:02:43]} a6 {[%emt 0:20:04]} 13. Na3 {[%emt 0:00:29]} b6 {[%emt 0:00:04]} 14. Nc4 {[%emt 0:19:42]} Rb8 {[%emt 0:27:29]} 15. Be3 {[%emt 0:04:57]} f5 {[%emt 0:02:42]} 16. f3 {[%emt 0:06:49]} f4 $146 {[%emt 0:10:43]} ({Predecessor:} 16... Kh8 17. a5 b5 18. Nb6 Nxb6 19. axb6 Bb7 20. c4 bxc4 21. Bxc4 Ra8 22. Qe2 Qd7 {1-0 Martinez Alcantara,J (2620)-Maksimovic,B (2398) Titled Tuesday intern op 19th May blitz 2020 (8)}) 17. Bf2 {[%emt 0:00:18]} Rf6 {[%emt 0:00:02]} 18. Ra3 {[%emt 0:16:28]} Qe8 {[%emt 0:27:47]} 19. g4 {[%emt 0:25:02]} fxg3 {[%emt 0:10:00]} 20. Bxg3 {[%emt 0:01:32]} Qf7 {[%emt 0:03:41]} 21. Rc3 {[%emt 0:04:03]} Bb7 {[%emt 0:13:33]} 22. Ne3 {[%emt 0:02:34]} Bd8 {[%emt 0:02:21]} (22... Qf8 $5) 23. Rc6 {[%emt 0:05:50]} h5 {[%emt 0:02:25]} (23... Qf8 $11) 24. Kh1 $14 {[%emt 0:01:36]} Nf8 {[%emt 0:01:01]} 25. Bd3 {[%emt 0:09:00]} Ng6 {[%emt 0:01:09]} 26. Be4 {[%emt 0:01:31]} b5 {[%emt 0:04:50]} 27. c4 {[%emt 0:05:13]} bxc4 $1 {[%emt 0:00:09]} 28. Nxc4 {[%emt 0:01:27]} (28. Rxc4 Bb6 29. Nc2 Ba7 $17) 28... h4 {[%emt 0:00:48]} (28... Bxc6 $6 29. dxc6 Qf8 30. Ne3 $16 (30. Qd5+ Kh8 $14)) ({Black should try} 28... Bc7 $14) 29. Nxd6 {[%emt 0:00:36]} (29. Bf2 {simplifies} Bc7 30. Ne3 Kh8 31. Rc4) 29... Qd7 {[%emt 0:00:10]} 30. Nxb7 {[%emt 0:05:34]} hxg3 {[%emt 0:00:02]} 31. Bxg6 {[%emt 0:07:15]} Qh3 {[%emt 0:00:04]} 32. Qe2 $1 {[%emt 0:01:20]} Rxb7 {[%emt 0:00:08]} 33. Qg2 {[%emt 0:01:22]} (33. Qxa6 $2 Qxh2#) 33... Qxg2+ {[%emt 0:02:33]} 34. Kxg2 {[%emt 0:00:01]} gxh2 {[%emt 0:00:39]} ({Black should play} 34... Rxb4 35. hxg3 (35. Kxg3 Rxa4 36. Rb1 Rf8 $16) 35... a5) 35. Rb1 $1 $16 {[%emt 0:01:07]} (35. Kxh2 $6 Rxb4 36. Rb1 Rxc6 37. dxc6 (37. Rxb4 $2 Rxg6 38. Kh3 Rd6 $19) 37... Rxb1 38. Bxb1 Kf7 $11) 35... h1=Q+ {[%emt 0:00:15]} 36. Kxh1 {[%emt 0:00:26]} Rxf3 {[%emt 0:00:04]} (36... Kf8 $16 37. Kg2 Ke7) 37. Rxa6 $18 {[%emt 0:00:49]} Rf4 {[%emt 0:00:32]} 38. Re6 {[%emt 0:02:17]} Re7 $2 {[%emt 0:00:53] [#]} (38... Rb8 39. d6 (39. Rxe5 $2 Rh4+ 40. Kg2 Rg4+ 41. Kf1 Rxg6 $17) (39. Re8+ Rf8 $18) 39... Bf6) 39. Rd6 $1 $18 {[%emt 0:00:25]} Bc7 {[%emt 0:00:25] [#]} 40. Rc6 $1 {[%emt 0:00:12]} Rd7 {[%emt 0:00:48]} 41. b5 {[%emt 0:00:52]} Rd6 {[%emt 0:00:34]} (41... Bd6 $142 42. Rc8+ Bf8) 42. b6 $18 {[%emt 0:00:24]} Bb8 {[%emt 0:00:30]} 43. Rxd6 {[%emt 0:01:10]} Bxd6 {[%emt 0:00:04]} 44. a5 {[%emt 0:00:46]} Rh4+ {[%emt 0:00:13]} 45. Kg2 {[%emt 0:00:01]} Rg4+ {[%emt 0:00:03]} 46. Kf1 {[%emt 0:01:03]} Rxg6 {[%emt 0:00:31]} 47. a6 $2 {[%emt 0:00:08]} (47. Rc1 Rf6+ 48. Ke2) 47... Rg4 $2 {[%emt 0:00:55]} (47... Bc5 48. a7 Rg1+ 49. Ke2 Rg2+ 50. Kf3 (50. Kd3 Ra2 $18) 50... Ra2) 48. a7 $18 {[%emt 0:00:04]} Ra4 {[%emt 0:00:10]} 49. Rc1 {[%emt 0:00:21]} Kf7 {[%emt 0:01:11]} 50. Rc8 {[%emt 0:00:02]} Ra1+ {[%emt 0:00:52]} 51. Ke2 {[%emt 0:00:03]} Ra2+ {[%emt 0:00:21]} 52. Kd1 {[%emt 0:00:23]} Ra1+ {[%emt 0:00:40]} 53. Kc2 {[%emt 0:00:08]} Bc5 {[%emt 0:00:29]} 54. Rxc5 {[%emt 0:00:06]} ({Inferior is} 54. a8=B Bxb6 55. Bc6 Ra2+ 56. Kd3 Bc5 $11) 1-0

[Event "Spring Chess Classic A 2024"]
[Site "Saint Louis"]
[Date "2024.04.16"]
[Round "6.2"]
[White "Aryan Chopra"]
[Black "Antipov, Mikhail Al."]
[Result "1/2-1/2"]
[ECO "A29"]
[WhiteElo "2630"]
[BlackElo "2574"]
[Annotator "RC"]
[PlyCount "92"]
[EventDate "2024.04.11"]
[EventCountry "USA"]
[SourceTitle "playchess.com"]
[Source "ChessBase"]
[SourceQuality "1"]
[TimeControl "7200+30"]

1. c4 {[%emt 0:01:37]} Nf6 {[%emt 0:00:06]} 2. Nc3 {[%emt 0:00:27]} e5 {[%emt 0:00:07]} 3. Nf3 {[%emt 0:00:05]} Nc6 {[%emt 0:00:05]} 4. g3 {[%emt 0:00:05]} Nd4 {[%emt 0:00:04]} 5. Bg2 {[%emt 0:00:12]} Nxf3+ {[%emt 0:00:06]} 6. Bxf3 {[%emt 0:00:04]} Bb4 {[%emt 0:00:06]} 7. g4 {[%emt 0:00:24]} h6 {[%emt 0:02:52]} 8. h4 {[%emt 0:00:05]} c6 {[%emt 0:01:14]} 9. Rg1 {[%emt 0:01:06]} Nh7 {[%emt 0:00:44]} 10. d4 {[%emt 0:00:10]} Qxh4 {[%emt 0:00:37]} 11. dxe5 {[%emt 0:00:08]} Qh2 {[%emt 0:09:30]} 12. Rg3 {[%emt 0:01:30]} Ng5 {[%emt 0:01:20]} 13. Bxg5 {[%emt 0:15:33]} hxg5 {[%emt 0:01:11]} 14. Qd4 {[%emt 0:07:40]} b6 {[%emt 0:05:39]} 15. O-O-O {[%emt 0:00:30]} Bc5 {[%emt 0:02:44]} 16. Qd3 {[%emt 0:00:19]} Rh6 {[%emt 0:14:04]} 17. Ne4 {[%emt 0:40:55]} Bxf2 {[%emt 0:00:30]} 18. Rh1 {[%emt 0:06:27]} Bxg3 {[%emt 0:03:56]} 19. Rxh2 {[%emt 0:00:09]} Bxh2 {[%emt 0:00:07]} 20. Nd6+ {[%emt 0:00:05]} Kf8 {[%emt 0:00:23]} 21. Nxc8 {[%emt 0:10:44]} Rxc8 {[%emt 0:00:23]} 22. Qxd7 {[%emt 0:00:05]} Re8 {[%emt 0:13:49]} 23. Bxc6 {[%emt 0:04:48]} Rhe6 {[%emt 0:00:15]} 24. Qd5 {[%emt 0:07:08]} Rc8 {[%emt 0:03:42]} 25. Bd7 {[%emt 0:00:22]} Rd8 {[%emt 0:00:15]} 26. Bxe6 {[%emt 0:00:39]} Rxd5 {[%emt 0:00:04]} 27. Bxd5 {[%emt 0:00:04]} Bxe5 {[%emt 0:00:07]} 28. Kc2 {[%emt 0:00:14]} a5 {[%emt 0:00:12]} 29. a3 {[%emt 0:00:09]} Ke7 {[%emt 0:00:31]} 30. b4 {[%emt 0:00:07]} axb4 {[%emt 0:00:02]} 31. axb4 {[%emt 0:00:05]} f6 {[%emt 0:00:12]} 32. c5 {[%emt 0:00:11]} bxc5 {[%emt 0:00:03]} 33. bxc5 {[%emt 0:00:05]} Kd7 {[%emt 0:00:11]} 34. Kd3 {[%emt 0:00:05]} Kc7 {[%emt 0:00:04]} 35. Be4 {[%emt 0:00:09]} Ba1 {[%emt 0:00:05]} 36. Kc4 {[%emt 0:00:05]} Be5 {[%emt 0:00:11]} 37. Kd5 {[%emt 0:00:05]} Ba1 {[%emt 0:00:09]} 38. Ke6 {[%emt 0:00:06]} Bd4 {[%emt 0:00:04]} 39. c6 {[%emt 0:00:04]} Ba1 {[%emt 0:00:06]} 40. Kf7 {[%emt 0:00:05]} Bb2 {[%emt 0:00:05]} 41. Bf3 {[%emt 0:00:04]} Ba1 {[%emt 0:00:18]} 42. Kxg7 {[%emt 0:00:05]} Bb2 {[%emt 0:00:22]} 43. Kg6 {[%emt 0:00:05]} Ba1 {[%emt 0:00:03]} 44. Kg7 {[%emt 0:00:04]} Bb2 {[%emt 0:00:04]} 45. Kg6 {[%emt 0:00:04]} Ba1 {[%emt 0:00:02]} 46. Kg7 {[%emt 0:00:04]} Bb2 {[%emt 0:00:09]} 1/2-1/2

[Event "Spring Chess Classic A 2024"]
[Site "Saint Louis"]
[Date "2024.04.16"]
[Round "6.3"]
[White "Mishra, Abhimanyu"]
[Black "Theodorou, Nikolas"]
[Result "1/2-1/2"]
[ECO "E11"]
[WhiteElo "2626"]
[BlackElo "2622"]
[Annotator "TA"]
[PlyCount "79"]
[EventDate "2024.04.11"]
[EventCountry "USA"]
[SourceTitle "playchess.com"]
[Source "ChessBase"]
[SourceQuality "1"]
[TimeControl "7200+30"]

{[%evp 13,79,0,20,0,11,-10,4,-2,0,0,6,0,0,0,4,0,0,0,0,0,0,0,0,0,0,0,0,0,0,0,4,6,8,0,0,0,0,0,16,22,14,19,19,8,9,0,0,0,0,0,0,0,0,0,0,0,0,0,0,0,0,0,0,0,0,0,0,0]} 1. d4 {[%emt 0:00:02]} Nf6 {[%emt 0:00:07]} 2. c4 {[%emt 0:00:05]} e6 {[%emt 0:00:04]} 3. Nf3 {[%emt 0:00:08]} d5 {[%emt 0:00:04]} 4. g3 {[%emt 0:00:20]} Bb4+ {[%emt 0:00:05]} 5. Bd2 {[%emt 0:00:34]} Be7 {[%emt 0:00:06]} 6. Bg2 {[%emt 0:00:43]} O-O {[%emt 0:00:07]} 7. O-O {[%emt 0:00:12]} Nbd7 {[%emt 0:00:04] The position is equal.} 8. b4 {[%emt 0:01:33]} Ne4 {[%emt 0:00:53]} 9. Qb3 {[%emt 0:01:19]} c6 {[%emt 0:01:10]} 10. Rc1 {[%emt 0:07:17]} a5 {[%emt 0:05:46]} 11. bxa5 {[%emt 0:05:29]} Nxd2 {[%emt 0:01:17]} 12. Nbxd2 {[%emt 0:00:14]} Qxa5 {[%emt 0:04:23]} 13. a4 {[%emt 0:16:46]} Rd8 {[%emt 0:10:32]} 14. e3 {[%emt 0:02:23]} b6 {[%emt 0:05:22]} 15. cxd5 {[%emt 0:01:55]} cxd5 {[%emt 0:00:09]} 16. Bf1 {[%emt 0:03:27]} Ba6 {[%emt 0:07:20]} 17. Bxa6 {[%emt 0:08:31]} Qxa6 {[%emt 0:01:24]} 18. Ne1 {[%emt 0:11:02]} Qa5 {[%emt 0:04:05]} 19. Ndf3 {[%emt 0:04:43]} Rdc8 {[%emt 0:08:28]} 20. Nd3 {[%emt 0:02:42]} Bd6 {[%emt 0:06:15]} 21. Qb5 {[%emt 0:06:22]} Rxc1+ {[%emt 0:14:50]} 22. Rxc1 {[%emt 0:00:07]} Qxa4 {[%emt 0:00:19] [#]} (22... Qxb5 {simplifies} 23. axb5 Kf8 24. Rc6 Ke7) 23. Rc8+ $1 {[%emt 0:01:39]} Nf8 {[%emt 0:00:53]} 24. Qxa4 {[%emt 0:00:59]} Rxa4 {[%emt 0:00:04]} 25. Rc6 {[%emt 0:00:53][%csl LRb6,LRd6]} Ra3 {[%emt 0:04:24]} 26. Rxd6 {[%emt 0:02:55]} Rxd3 {[%emt 0:01:26]} 27. Rxb6 $11 {[%emt 0:00:42][%mdl 4096] Endgame. KRN-KRN} Rc3 {[%emt 0:04:05]} 28. h4 {[%emt 0:02:21]} h5 {[%emt 0:01:52]} 29. Ng5 {[%emt 0:01:59]} Rc7 {[%emt 0:02:02]} 30. Rb8 {[%emt 0:00:37]} g6 {[%emt 0:00:15]} 31. Kg2 {[%emt 0:00:46]} Kg7 {[%emt 0:00:19]} 32. Re8 {[%emt 0:00:14]} Nh7 {[%emt 0:00:55]} 33. Nxh7 {[%emt 0:00:14]} Kxh7 {[%emt 0:00:03] KR-KR} 34. Ra8 {[%emt 0:00:10]} Kg7 {[%emt 0:00:05]} 35. Rb8 {[%emt 0:00:06]} Ra7 {[%emt 0:00:06]} 36. Rc8 {[%emt 0:00:07]} Rb7 {[%emt 0:00:05]} 37. Ra8 {[%emt 0:00:07]} Rc7 {[%emt 0:00:05]} 38. Rb8 {[%emt 0:00:05]} Ra7 {[%emt 0:00:04]} 39. Rb6 {[%emt 0:00:06]} Ra1 {[%emt 0:00:10]} 40. Rb8 {[%emt 0:00:06] An even fight not without its subleties.   Weighted Error Value: White=0.03 (flawless) /Black=0.03 (flawless) .  OK:         	White=12    	Black=14} 1/2-1/2

[Event "Spring Chess Classic A 2024"]
[Site "Saint Louis"]
[Date "2024.04.17"]
[Round "6.4"]
[White "Hakobyan, Aram"]
[Black "Yoo, Christopher Woojin"]
[Result "1/2-1/2"]
[ECO "D39"]
[WhiteElo "2619"]
[BlackElo "2583"]
[Annotator "TA"]
[PlyCount "93"]
[EventDate "2024.04.11"]
[EventCountry "USA"]
[SourceTitle "playchess.com"]
[Source "ChessBase"]
[SourceQuality "1"]
[TimeControl "7200+30"]

{[%evp 21,93,18,28,-47,33,18,9,22,54,52,47,0,-1,-5,-2,0,-4,0,0,0,0,0,0,-4,-3,-3,-3,-42,-40,-68,-83,-73,-80,-85,-88,-71,-73,-76,-24,-20,-22,-22,-8,-15,0,0,0,0,0,0,0,-7,-7,-7,-7,-7,-7,-7,-7,-7,-7,-7,-7,-7,-7,-7,0,0,0,0,8,8,8,8]} 1. d4 {[%emt 0:01:03]} Nf6 {[%emt 0:00:09]} 2. c4 {[%emt 0:00:05]} e6 {[%emt 0:00:08]} 3. Nf3 {[%emt 0:00:09]} d5 {[%emt 0:00:08]} 4. Nc3 {[%emt 0:00:08]} dxc4 {[%emt 0:00:09]} 5. e4 {[%emt 0:00:45]} Bb4 {[%emt 0:00:09]} 6. Bg5 {[%emt 0:00:33]} h6 {[%emt 0:00:16]} 7. Bxf6 {[%emt 0:00:11]} Qxf6 {[%emt 0:00:04]} 8. Bxc4 {[%emt 0:00:23]} c5 {[%emt 0:00:07]} 9. O-O {[%emt 0:00:20] D39: Queen's Gambit Declined: Ragozin Defence with 5 Bg5 dxc4.} cxd4 {[%emt 0:00:07]} 10. e5 $1 {[%emt 0:00:43] 10.e5 is better than 10.Nb5.} Qd8 {[%emt 0:00:08]} 11. Ne4 {[%emt 0:00:08]} O-O {[%emt 0:00:12]} 12. Nxd4 {[%emt 0:04:05]} ({White should try} 12. Qe2 $11) 12... Nd7 {[%emt 0:03:54]} (12... Qc7 $15 13. Qb3 Qxe5 14. Qxb4 Qxd4) 13. f4 $146 {[%emt 0:02:03]} ({Predecessor:} 13. Nf3 Nb6 14. Qb3 Qe7 15. a3 Ba5 16. Nd6 Bd7 17. Bb5 Rab8 18. Rfd1 Rfd8 19. Rd4 {0-1 Mohannad,F (2286)-Ghaem Maghami,E (2581) Dubai op 14th 2012 (7)}) 13... Qb6 {[%emt 0:03:12]} 14. Kh1 {[%emt 0:09:10]} Rd8 {[%emt 0:00:35]} 15. Nxe6 $1 {[%emt 0:03:24]} fxe6 {[%emt 0:01:16]} 16. Qg4 {[%emt 0:01:55]} (16. Qh5 $14 {is more appropriate.}) 16... Qd4 $11 {[%emt 0:24:54]} 17. Bxe6+ {[%emt 0:11:57]} Kh8 {[%emt 0:00:06]} 18. Ng5 {[%emt 0:20:27]} Nxe5 {[%emt 0:03:51]} (18... hxg5 19. Qh5#) 19. fxe5 {[%emt 0:08:49]} Qxg4 {[%emt 0:01:15]} ({Stronger than} 19... hxg5 20. Qh5#) 20. Nf7+ {[%emt 0:00:06]} Kg8 {[%emt 0:00:46]} 21. Bxg4 {[%emt 0:00:15]} Rd4 $1 {[%emt 0:01:18]} (21... Bxg4 $2 {loses.} 22. Nxd8 Bd7 (22... Rxd8 $2 23. Rf4 $18) 23. e6 $18 (23. Nxb7 Rb8 $18)) 22. Bxc8 {[%emt 0:05:36]} Rxc8 {[%emt 0:00:07]} 23. a3 {[%emt 0:02:46]} Be7 {[%emt 0:02:28]} 24. e6 {[%emt 0:07:30]} Rc2 {[%emt 0:13:00]} 25. Rac1 {[%emt 0:07:13]} Rxc1 {[%emt 0:03:58]} 26. Rxc1 {[%emt 0:01:19]} Re4 {[%emt 0:00:09]} 27. Rc8+ {[%emt 0:04:29]} Bf8 {[%emt 0:00:40]} 28. Rc1 {[%emt 0:00:07]} Rxe6 {[%emt 0:03:44]} 29. Nd8 {[%emt 0:00:06]} Re7 {[%emt 0:02:19]} (29... Rb6 $17 30. b4 Ra6) 30. g3 {[%emt 0:02:32]} g5 {[%emt 0:02:05]} 31. b4 {[%emt 0:06:12]} Kh7 {[%emt 0:06:06]} 32. Kg2 {[%emt 0:04:44]} h5 {[%emt 0:01:54]} 33. Rf1 {[%emt 0:02:28]} Bg7 {[%emt 0:03:41]} 34. Rf7 {[%emt 0:02:15]} Rxf7 {[%emt 0:00:46]} 35. Nxf7 {[%emt 0:00:01]} Kg6 {[%emt 0:01:18]} 36. Nd8 {[%emt 0:02:49]} b5 {[%emt 0:00:58]} 37. Nc6 {[%emt 0:00:29]} a6 {[%emt 0:00:50]} 38. Nb8 {[%emt 0:00:16]} Bb2 {[%emt 0:00:32]} 39. Nxa6 {[%emt 0:00:05]} Bxa3 {[%emt 0:00:03]} 40. Nc7 {[%emt 0:00:20]} Bxb4 {[%emt 0:00:03]} 41. Nxb5 {[%emt 0:00:08]} g4 {[%emt 0:00:13]} 42. Nd4 {[%emt 0:00:11]} Be7 {[%emt 0:00:08]} 43. h3 {[%emt 0:00:15]} gxh3+ {[%emt 0:00:06]} 44. Kxh3 {[%emt 0:00:04]} Bd6 {[%emt 0:00:11]} 45. g4 {[%emt 0:00:05]} Bh2 {[%emt 0:00:08]} 46. gxh5+ {[%emt 0:00:08]} Kxh5 {[%emt 0:00:06]} 47. Kxh2 {[%emt 0:00:02]} 1/2-1/2